[Event "XV South American-ch Open U20 2019"]
[Site "Asuncion"]
[Date "2019.05.14"]
[Round "6.10"]
[White "Orrego Palermo, Marcelo"]
[Black "Cosme Contreras, Trilce"]
[Result "1/2-1/2"]
[ECO "A45"]
[WhiteElo "1632"]
[BlackElo "2051"]
[Annotator "NA RC"]
[PlyCount "110"]
[EventDate "2019.05.11"]
[EventType "swiss"]
[EventCountry "PAR"]
[SourceTitle "playchess.com"]
[Source "ChessBase"]
[SourceQuality "1"]
[TimeControl "5400+30"]

1. d4 Nf6 2. Bg5 g6 3. Bxf6 exf6 4. e3 Bg7 5. g3 O-O 6. Bg2 f5 {A45: Trompowsky Attack} 7. Ne2 c5 (7... d6 8. c4 c6 9. Nbc3 Nd7 10. O-O Nf6 11. b4 Re8 12. Qd3 Qe7 13. b5 Ne4 14. a4 a6 15. bxc6 bxc6 16. Rab1 a5 17. Rb6 Ra6 18. Rb8 Qc7 19. Rfb1 Nf6 {1-0 (83) Kryakvin,D (2567)-Ponkratov,P (2605) Serpukhov 2018}) 8. O-O cxd4 $146 ({Predecessor:} 8... d6 9. Nbc3 Nc6 10. Nd5 cxd4 11. exd4 Be6 12. Re1 Bxd5 13. Bxd5 {0-1 (48) Morant Amezaga,C-Frances Saez,J (2081) Alzira 2003}) 9. Nxd4 Nc6 10. c3 d5 11. Ne2 Be6 12. Nd2 Qc7 13. Nb3 Rfd8 14. Qc2 Rac8 15. Rfd1 b5 16. Nf4 Ne7 17. Nd4 Qb6 18. Qb3 a6 19. Nc2 Qc5 20. a4 g5 21. Nxe6 fxe6 22. axb5 axb5 23. Ra5 Rb8 24. Na3 Nc6 25. Rxb5 Rxb5 26. Qxb5 Qxb5 27. Nxb5 Rb8 28. Nc7 Nd8 29. Rb1 Bxc3 30. b3 Kf7 31. Bf1 Ke7 $11 32. Na6 Rb6 33. b4 Nb7 34. Rc1 Bxb4 35. Nxb4 Rxb4 36. Rc7+ Kd6 37. Rxh7 Nc5 38. h4 gxh4 39. gxh4 Rb7 40. Rxb7 Nxb7 41. h5 Ke5 42. f4+ Kf6 43. Bb5 Nd6 44. Bd7 Ke7 45. Ba4 Ne4 46. Kg2 Nf6 47. Bd1 Kf7 48. Kg3 Ne4+ 49. Kg2 Kg7 50. Be2 Kh6 51. Kh3 Nd6 52. Kg3 Nc4 53. Kf2 Nd2 54. Kg3 Nc4 55. Kf2 Nd2 1/2-1/2

[Event "XV South American-ch Open U20 2019"]
[Site "Asuncion"]
[Date "2019.05.14"]
[Round "6.10"]
[White "Orrego Palermo, Marcelo"]
[Black "Cosme Contreras, Trilce"]
[Result "*"]
[ECO "A45"]
[WhiteElo "1632"]
[BlackElo "2051"]
[Annotator "NA RC"]
[PlyCount "31"]
[EventDate "2019.05.11"]
[EventType "swiss"]
[EventCountry "PAR"]
[SourceTitle "playchess.com"]
[Source "ChessBase"]
[SourceQuality "1"]
[TimeControl "5400+30"]

1. d4 Nf6 2. Bg5 g6 3. Bxf6 exf6 4. e3 Bg7 5. g3 O-O 6. Bg2 f5 7. Ne2 c5 8. O-O cxd4 9. Nxd4 Nc6 10. c3 d5 11. Ne2 Be6 12. Nd2 Qe7 13. Nb3 Rfe8 14. Qc2 Rac8 15. Rfd1 b5 16. Nf4 ({Don't blunder} 16. Bxd5 $2 {[#]} Nb4 $1 $19 {[%mdl 576] Double Attack, Pin}) *

[Event "XV South American-ch Open U20 2019"]
[Site "Asuncion"]
[Date "2019.05.14"]
[Round "6.11"]
[White "Ayala Ruiz, Miguel Angel"]
[Black "Menacho Admen, Victor Gabriel"]
[Result "1-0"]
[ECO "C42"]
[WhiteElo "1444"]
[BlackElo "1103"]
[Annotator "NA RC"]
[PlyCount "47"]
[EventDate "2019.05.11"]
[EventType "swiss"]
[EventCountry "PAR"]
[SourceTitle "playchess.com"]
[Source "ChessBase"]
[SourceQuality "1"]
[TimeControl "5400+30"]

1. e4 e5 2. Nf3 Nf6 3. Nxe5 d6 4. Nf3 Nxe4 5. Nc3 Nf6 6. d4 d5 7. Bd3 Nc6 8. Be3 g6 9. Qd2 Bg4 10. Be2 Ne4 11. Nxe4 dxe4 12. Ng5 Bxe2 13. Qxe2 f5 14. Qc4 Qd7 15. O-O-O O-O-O 16. d5 Ne7 17. Nf7 Bg7 18. d6 Rhf8 19. dxe7 Qxe7 20. Rxd8+ Rxd8 21. Nxd8 Qxd8 22. Rd1 Qh4 23. Qg8+ Qd8 24. Qxd8# 1-0

[Event "XV South American-ch Open U20 2019"]
[Site "Asuncion"]
[Date "2019.05.14"]
[Round "6.12"]
[White "Avalos Sanabria, Augusto Alfredo"]
[Black "Allo Collante, Enrique"]
[Result "0-1"]
[ECO "B12"]
[WhiteElo "1474"]
[BlackElo "1595"]
[Annotator "NA RC"]
[PlyCount "86"]
[EventDate "2019.05.11"]
[EventType "swiss"]
[EventCountry "PAR"]
[SourceTitle "playchess.com"]
[Source "ChessBase"]
[SourceQuality "1"]
[TimeControl "5400+30"]

1. e4 c6 2. d4 d5 3. e5 Bf5 4. Nf3 e6 5. Bd3 Bxd3 6. Qxd3 c5 7. c3 Nc6 8. O-O Nge7 9. Be3 Ng6 10. Nbd2 Be7 11. b3 O-O 12. h3 Rc8 13. Rfe1 Qd7 14. Nf1 cxd4 15. cxd4 Nb4 16. Qd2 Nc2 17. Ng3 Bb4 18. Qe2 Bxe1 19. Rxe1 Nxe1 20. Nxe1 Qc6 21. Bd2 Qb6 22. Qe3 f5 23. exf6 Rxf6 24. Nf3 Nf4 25. Ne5 Qd6 26. Ng4 Rff8 27. Qe1 Qb6 28. Bc3 Qa6 29. a4 h5 30. Ne5 h4 31. Nf1 Ne2+ 32. Kh2 Rxc3 33. b4 Rc2 34. Ne3 Ra2 35. Nd7 Qd6+ 36. Ne5 Nxd4 37. N3g4 Re2 38. Qd1 Rxe5 39. Nxe5 Qxe5+ 40. Kh1 Rxf2 41. Kg1 Qg3 42. Qg4 Ne2+ 43. Qxe2 Qxg2# 0-1

[Event "XV South American-ch Open U20 2019"]
[Site "Asuncion"]
[Date "2019.05.15"]
[Round "7.2"]
[White "Cantero, Rodolfo"]
[Black "Benitez Galeano, Alejandro"]
[Result "1-0"]
[ECO "A04"]
[WhiteElo "2059"]
[BlackElo "2052"]
[Annotator "NA RC"]
[PlyCount "99"]
[EventDate "2019.05.11"]
[EventType "swiss"]
[EventCountry "PAR"]
[SourceTitle "playchess.com"]
[Source "ChessBase"]
[SourceQuality "1"]
[TimeControl "5400+30"]

{[%evp 21,99,0,2,-10,24,-36,5,0,4,-2,12,20,32767,-33,-3,-38,32767,-27,10,-3,0,32767,-4,-22,0,-90,-30,-83,-50,-56,32767,32767,32767,32767,32767,32767,32767,32767,0,32767,32767,-73,-117,32767,-91,32767,72,32767,70,32767,32767,32767,32767,32767,32767,32767,32767,32767,32767,32767,32767,32767,32767,25,29,30,16,32767,-22,-20,-17,-90,-29,-168,-179,-195,-233,-300,32767,504]} 1. e4 {[%emt 0:00:30]} c5 {[%emt 0:00:30]} 2. Nf3 {[%emt 0:00:00]} e6 {[%emt 0:00:00]} 3. d3 {[%emt 0:00:00]} Nc6 {[%emt 0:01:00]} 4. g3 {[%emt 0:00:00]} Nge7 {[%emt 0:04:30]} 5. Bg2 {[%emt 0:00:00]} g6 {[%emt 0:00:30]} 6. O-O {[%emt 0:00:30]} Bg7 {[%emt 0:00:00]} 7. Re1 {[%emt 0:00:30]} d6 {[%emt 0:01:00]} 8. c3 {[%emt 0:04:30]} O-O {[%emt 0:01:30]} 9. Be3 {[%emt 0:02:30]} Rb8 {[%emt 0:05:30]} 10. d4 {[%emt 0:02:30] A04: Unusual lines after 1 Nf3 and King's Indian Attack} (10. a4 b6 11. Nbd2 d5 12. Bg5 f6 13. exd5 Nxd5 14. Be3 Nxe3 15. Rxe3 Ne7 16. Qc2 Nf5 17. Re2 e5 {½-½ (44) Sundell,B (2171)-Andersson,S (1956) Ostersund 2018}) 10... cxd4 {[%emt 0:02:30]} 11. Nxd4 {[%emt 0:00:30]} a6 {[%emt 0:03:30]} 12. f4 {[%emt 0:07:30]} Qc7 $146 {[%emt 0:06:30]} ({Predecessor:} 12... Nxd4 13. Bxd4 Bxd4+ 14. Qxd4 Nc6 15. Qe3 b5 16. Rd1 Qc7 17. Kh1 Bb7 18. Nd2 Rfd8 19. Nf3 Na5 20. f5 Nc4 21. Qh6 Bxe4 22. f6 {1-0 (22) Cherry,A (1949)-San Diego,M Manila 2011}) 13. Re2 {[%emt 0:12:30]} (13. Nd2 $11) 13... b5 {[%emt 0:03:30]} 14. Nxc6 {[%emt 0:00:30]} Nxc6 {[%emt 0:01:30]} 15. Rd2 {[%emt 0:03:30]} Rd8 {[%emt 0:00:30]} 16. Na3 {[%emt 0:04:30]} e5 {[%emt 0:16:30]} 17. Qc2 {[%emt 0:03:30]} Ne7 {[%emt 0:10:30]} 18. Rad1 {[%emt 0:07:30]} Be6 {[%emt 0:02:30]} 19. Qb1 {[%emt 0:11:30]} Rbc8 {[%emt 0:06:30]} 20. Nc2 {[%emt 0:06:30]} a5 {[%emt 0:00:30]} 21. Ne1 {[%emt 0:02:30]} b4 {[%emt 0:03:30]} 22. cxb4 {[%emt 0:00:30]} axb4 {[%emt 0:00:00]} 23. b3 {[%emt 0:02:30]} (23. fxe5 $11 {remains equal.} Bxe5 24. Nf3) 23... Bg4 {[%emt 0:06:00]} 24. Nf3 {[%emt 0:01:30]} Nc6 {[%emt 0:07:23]} 25. h3 {[%emt 0:14:52]} exf4 {[%emt 0:00:58]} 26. gxf4 {[%emt 0:00:30]} Bh5 {[%emt 0:00:05]} 27. Rf1 {[%emt 0:00:37]} Qa5 {[%emt 0:00:30]} 28. Nh2 {[%emt 0:00:36]} Na7 {[%emt 0:00:30]} 29. f5 {[%emt 0:00:40]} Be5 {[%emt 0:00:30]} 30. f6 {[%emt 0:00:45]} Rc3 {[%emt 0:00:58]} 31. Qe1 {[%emt 0:01:14]} Nc6 {[%emt 0:03:16]} 32. Ng4 {[%emt 0:00:44]} Bxg4 $1 {[%emt 0:01:24]} 33. hxg4 {[%emt 0:00:01]} Rxe3 $2 {[%emt 0:00:16]} (33... Qc7 $17) 34. Qxe3 {[%emt 0:00:34]} Qc5 {[%emt 0:00:02]} 35. Qxc5 {[%emt 0:01:46]} dxc5 {[%emt 0:00:00]} 36. Rd5 {[%emt 0:01:25]} Bd4+ {[%emt 0:01:09]} 37. Kh2 {[%emt 0:00:27]} h6 {[%emt 0:00:05]} 38. g5 {[%emt 0:03:23]} hxg5 {[%emt 0:01:03]} 39. Rxg5 {[%emt 0:00:01]} Be5+ {[%emt 0:00:18]} 40. Kh3 {[%emt 0:01:53]} Rd3+ {[%emt 0:01:23]} 41. Rf3 {[%emt 0:00:39]} Rd2 {[%emt 0:00:02]} 42. Rff5 {[%emt 0:01:28]} Rd3+ $1 {[%emt 0:02:05]} 43. Kh4 {[%emt 0:01:53]} Bc3 {[%emt 0:00:12]} 44. Rf1 {[%emt 0:01:48]} Ne5 {[%emt 0:01:51]} 45. Rg3 $1 {[%emt 0:00:24]} Rd2 {[%emt 0:00:15]} 46. Bf3 {[%emt 0:00:43]} (46. a4 $11) 46... Rxa2 {[%emt 0:01:07]} 47. Rh3 {[%emt 0:00:30] [#]} (47. Kh3 $15) 47... Nd7 $1 {[%emt 0:00:47]} 48. e5 {[%emt 0:00:25]} Bxe5 {[%emt 0:00:10]} 49. Bd5 $19 {[%emt 0:00:17]} Rg2 {[%emt 0:00:22]} 50. Bxg2 {[%emt 0:00:04]} 1-0

[Event "XV South American-ch Open U20 2019"]
[Site "Asuncion"]
[Date "2019.05.15"]
[Round "7.7"]
[White "Gomez Barrera, Gonzalo Andres"]
[Black "Vazquez, Facundo"]
[Result "0-1"]
[ECO "C16"]
[WhiteElo "2058"]
[BlackElo "2086"]
[Annotator "NA RC"]
[PlyCount "60"]
[EventDate "2019.05.11"]
[EventType "swiss"]
[EventCountry "PAR"]
[SourceTitle "playchess.com"]
[Source "ChessBase"]
[SourceQuality "1"]
[TimeControl "5400+30"]

1. e4 e6 2. d4 d5 3. Nc3 Bb4 4. e5 b6 5. Qg4 Bf8 6. Bg5 Qd7 7. O-O-O Nc6 8. Kb1 Bb7 9. Nge2 h6 10. Be3 O-O-O 11. Ng3 g6 12. h4 h5 13. Qf3 Na5 14. Bg5 Re8 $14 15. Bb5 c6 16. Bd3 Kb8 17. a3 Ba8 18. b4 Nb7 19. Na2 Rc8 20. c3 Nd8 21. Bxg6 Bxb4 22. axb4 fxg6 23. Ne2 Nf7 24. Bf6 Nxf6 25. Qxf6 Rhg8 26. Nf4 Nd8 27. Rd3 c5 28. Nxg6 Rc7 29. Nf4 Qh7 30. Kb2 Rf7 0-1

[Event "XV South American-ch Open U20 2019"]
[Site "Asuncion"]
[Date "2019.05.15"]
[Round "7.8"]
[White "Mayeregger, Arnold"]
[Black "Orrego Palermo, Marcelo"]
[Result "1-0"]
[ECO "A30"]
[WhiteElo "1913"]
[BlackElo "1632"]
[Annotator "NA RC"]
[PlyCount "53"]
[EventDate "2019.05.11"]
[EventType "swiss"]
[EventCountry "PAR"]
[SourceTitle "playchess.com"]
[Source "ChessBase"]
[SourceQuality "1"]
[TimeControl "5400+30"]

1. c4 Nf6 2. g3 e6 3. Bg2 c5 4. Nf3 Be7 5. O-O O-O 6. Nc3 d6 {A30: Symmetrical English: Double Fianchetto and Hedgehog} (6... a6 7. b3 d6 8. Bb2 b6 9. d4 cxd4 10. Nxd4 Ra7 11. e3 Bb7 12. Bxb7 Rxb7 13. f4 Qd7 14. g4 Nc6 15. g5 Ne8 16. Nxc6 Qxc6 {1-0 (54) Nisipeanu,L (2678)-Enders,P (2460) Germany 2016}) 7. b3 Nbd7 8. Bb2 a6 9. e3 Rb8 10. a4 b6 11. d3 $146 ({Predecessor:} 11. d4 Re8 12. Qc2 Qc7 {1-0 (54) Janko,M (2271)-Bezuch,M (2198) Slovakia 2010}) 11... Bb7 12. e4 Qc7 13. Ne1 d5 14. cxd5 exd5 15. f4 dxe4 16. dxe4 Rfd8 17. Qe2 Nf8 18. e5 Bxg2 19. Nxg2 Ne8 20. f5 c4 21. bxc4 Rbc8 22. Nd5 Bc5+ 23. Kh1 Qc6 24. Ngf4 $18 Nc7 25. Qf3 Qe8 26. Qg4 b5 27. Nf6+ 1-0

[Event "XV South American-ch Open U20 2019"]
[Site "Asuncion"]
[Date "2019.05.15"]
[Round "7.10"]
[White "Cosme Contreras, Trilce"]
[Black "Araoz Andrade, Ivan Alexander"]
[Result "1-0"]
[ECO "D85"]
[WhiteElo "2051"]
[BlackElo "1843"]
[Annotator "NA RC"]
[PlyCount "63"]
[EventDate "2019.05.11"]
[EventType "swiss"]
[EventCountry "PAR"]
[SourceTitle "playchess.com"]
[Source "ChessBase"]
[SourceQuality "1"]
[TimeControl "5400+30"]

1. d4 Nf6 2. c4 g6 3. Nc3 d5 4. cxd5 Nxd5 5. e4 Nxc3 6. bxc3 Bg7 7. Nf3 c5 8. Rb1 O-O 9. Be2 cxd4 10. cxd4 Qa5+ 11. Bd2 Qxa2 12. O-O Nc6 13. d5 Ne5 14. Nxe5 Bxe5 15. Bb4 Bf6 16. f4 Rd8 17. Bf3 a5 18. Bc5 e5 19. Qc1 $11 (19. Bb6 $14 Re8 20. f5) 19... Qa4 20. Qa3 Qe8 21. Bb6 Rd6 22. Qc5 Qe7 23. Bc7 Rd7 24. d6 Qe6 25. f5 Qa2 26. Rbe1 g5 27. Be2 a4 28. Bc4 Qd2 29. Rd1 Rxc7 30. Qxc7 Qe3+ 31. Kh1 b5 32. Qxf7+ 1-0

[Event "XV South American-ch Open U20 2019"]
[Site "Asuncion"]
[Date "2019.05.15"]
[Round "7.11"]
[White "Allo Collante, Enrique"]
[Black "Melian, Juan Sebastian"]
[Result "0-1"]
[ECO "B14"]
[WhiteElo "1595"]
[BlackElo "1786"]
[Annotator "NA RC"]
[PlyCount "54"]
[EventDate "2019.05.11"]
[EventType "swiss"]
[EventCountry "PAR"]
[SourceTitle "playchess.com"]
[Source "ChessBase"]
[SourceQuality "1"]
[TimeControl "5400+30"]

1. c4 e6 2. Nc3 Nf6 3. Nf3 c5 4. e3 Nc6 5. d4 cxd4 6. exd4 d5 7. Bf4 Bd6 8. Bxd6 Qxd6 9. c5 Qe7 10. Bb5 O-O 11. O-O Bd7 12. Re1 b6 13. Bxc6 Bxc6 14. Ne5 Qb7 15. Nxc6 Qxc6 16. b4 bxc5 17. bxc5 Rab8 18. Qd3 Nd7 19. f4 Rfc8 20. Rac1 Rb4 21. Kh1 g6 22. Red1 Rc4 23. Rb1 Rb8 24. Rxb8+ Nxb8 25. Rb1 Na6 26. a3 Kg7 27. Nb5 Qxb5 0-1

[Event "XV South American-ch Open U20 2019"]
[Site "Asuncion"]
[Date "2019.05.15"]
[Round "7.12"]
[White "Menacho Admen, Victor Gabriel"]
[Black "Avalos Sanabria, Augusto Alfredo"]
[Result "0-1"]
[ECO "B70"]
[WhiteElo "1103"]
[BlackElo "1474"]
[Annotator "NA RC"]
[PlyCount "168"]
[EventDate "2019.05.11"]
[EventType "swiss"]
[EventCountry "PAR"]
[SourceTitle "playchess.com"]
[Source "ChessBase"]
[SourceQuality "1"]
[TimeControl "5400+30"]

1. e4 c5 2. Nf3 d6 3. d4 cxd4 4. Nxd4 Nf6 5. Nc3 g6 6. Bc4 Bg7 7. Nf3 Nc6 8. O-O h6 9. Re1 O-O 10. h3 a6 11. b3 b5 12. Bd3 Bb7 13. Bb2 Rc8 14. Qd2 Qd7 15. Nd5 Nxd5 16. Bxg7 Kxg7 17. exd5 Nd8 18. c4 e6 19. Be2 f5 20. a4 bxc4 21. bxc4 Nf7 22. Bf1 e5 23. Qd3 Kh7 24. Nh4 e4 25. Qg3 g5 26. Nxf5 Qxf5 27. Rad1 Rce8 28. f3 Qf4 29. Qxf4 gxf4 30. Rxe4 Rxe4 31. Bd3 Ne5 32. fxe4 Nxd3 33. Rxd3 Re8 34. Rb3 Re7 35. Kf2 Kg6 36. g3 Rf7 37. Kg2 fxg3 38. Rb6 Kg5 39. Kxg3 Rd7 40. h4+ Kf6 41. c5 Rg7+ 42. Kf3 Ke5 43. Rxd6 Kd4 44. c6 Bc8 45. Rxh6 Rf7+ 46. Kg3 Kxe4 47. Rh8 Rc7 48. Rh5 Bf5 49. Rg5 a5 50. h5 Rc8 51. h6 Rh8 52. c7 Bc8 53. h7 Rxh7 54. Rg8 Rxc7 55. d6 Rc6 56. Rd8 Rc4 57. d7 Bxd7 58. Rxd7 Rxa4 59. Re7+ Kd3 60. Kf3 Kc2 61. Re2+ Kd1 62. Kf2 Ra3 63. Re1+ Kc2 64. Re2+ Kb3 65. Ke1 Ra1+ 66. Kf2 Ra2 67. Rxa2 Kxa2 68. Kf1 Kb2 69. Ke1 a4 70. Kd2 a3 71. Kd3 a2 72. Kd4 a1=Q 73. Kd5 Qa4 74. Kc5 Qe4 75. Kd6 Kc3 76. Kc7 Kc4 77. Kd6 Qf5 78. Kc6 Qd5+ 79. Kc7 Qe6 80. Kb7 Qd6 81. Ka7 Kb5 82. Ka8 Qd7 83. Kb8 Kc6 84. Ka8 Qb7# 0-1

[Event "XV South American-ch Open U20 2019"]
[Site "Asuncion"]
[Date "2019.05.16"]
[Round "8.1"]
[White "Zambrano Acebo, Jean Junior"]
[Black "Estrada Lavin, Cristian Alexand"]
[Result "1/2-1/2"]
[ECO "B22"]
[WhiteElo "2174"]
[BlackElo "2116"]
[Annotator "NA RC"]
[PlyCount "108"]
[EventDate "2019.05.11"]
[EventType "swiss"]
[EventCountry "PAR"]
[SourceTitle "playchess.com"]
[Source "ChessBase"]
[SourceQuality "1"]
[TimeControl "5400+30"]

{[%evp 12,92,0,12,0,0,8,32767,0,0,32767,-11,0,8,32767,26,65,86,94,20,28,-24,32767,32767,0,32767,6,32767,51,49,112,46,36,32767,32767,32767,32767,32767,35,33,3,36,35,40,37,32767,35,32767,32767,32767,32767,32767,32767,32767,32767,32767,3,0,19,4,0,0,0,4,12,8,2,12,6,8,8,0,0,0,21,32767,17,8,20,16,52,48,62]} 1. e4 {[%emt 0:00:30]} c5 {[%emt 0:00:30]} 2. d4 {[%emt 0:00:30]} cxd4 {[%emt 0:00:30]} 3. c3 {[%emt 0:00:30]} Nf6 {[%emt 0:02:30]} 4. e5 {[%emt 0:01:30]} Nd5 {[%emt 0:00:30]} 5. Qxd4 {[%emt 0:00:30]} e6 {[%emt 0:00:30]} 6. Nf3 {[%emt 0:01:30]} Nc6 {[%emt 0:01:30]} 7. Qe4 {[%emt 0:01:30]} d6 {[%emt 0:03:30]} 8. Nbd2 {[%emt 0:03:30]} Be7 {[%emt 0:12:30]} 9. Nc4 {[%emt 0:09:30] B22: Sicilian: 2 c3} (9. exd6 Qxd6 10. Nc4 Qc7 11. Bd3 f5 12. Qe2 O-O 13. O-O Bf6 14. Re1 Bd7 15. Nce5 Rae8 16. Nxc6 bxc6 {1-0 (58) Richter,W (2399)-Ginsburg,G (2526) Germany 2010}) 9... dxe5 {[%emt 0:04:30]} 10. Ncxe5 {[%emt 0:11:30]} Nxe5 {[%emt 0:00:30]} 11. Nxe5 {[%emt 0:13:30]} O-O {[%emt 0:02:30]} 12. Bd3 {[%emt 0:00:30]} Nf6 {[%emt 0:01:30]} 13. Qe2 {[%emt 0:09:30]} Qd5 $146 {[%emt 0:08:30]} ({Predecessor:} 13... Qc7 14. Bg5 b6 15. O-O Bb7 16. Rad1 Rad8 17. Rd2 Rd5 18. f4 Bc5+ 19. Kh1 Nd7 20. c4 Rd4 21. b4 f6 22. Nxd7 Qxd7 23. bxc5 fxg5 24. cxb6 gxf4 25. bxa7 {0-1 (35) Besner,B (2153)-Koch,M (2217) Bad Neustadt 2003}) 14. O-O {[%emt 0:05:30]} b6 {[%emt 0:24:30]} 15. c4 {[%emt 0:28:22]} (15. Rd1 $5 {[%cal Rd3h7]} Qc5 16. Bb5 $14) 15... Qc5 {[%emt 0:03:30]} 16. b4 {[%emt 0:04:46]} Qc7 {[%emt 0:03:30]} 17. a3 {[%emt 0:00:10]} Bb7 {[%emt 0:04:30]} 18. Bf4 {[%emt 0:02:21]} Bd6 {[%emt 0:00:30]} 19. Rac1 {[%emt 0:00:18]} Nd7 {[%emt 0:08:24]} (19... Rfd8 $11) 20. Nxd7 $1 {[%emt 0:00:47]} ({Not} 20. Qh5 $2 g6 $19) 20... Qxd7 {[%emt 0:00:16] [#]} (20... Bxf4 $14 21. Nxf8 Rxf8) 21. Rfd1 {[%emt 0:01:11]} (21. Bxh7+ $1 $16 {[%mdl 512]} Kxh7 22. Qd3+ {[%mdl 64] Double Attack} Kg8 23. Bxd6) 21... Qc6 {[%emt 0:00:54]} 22. Be4 {[%emt 0:01:14]} Qxe4 {[%emt 0:00:09]} 23. Qxe4 {[%emt 0:00:04]} Bxe4 {[%emt 0:00:07]} 24. Bxd6 {[%emt 0:00:03]} Rfd8 {[%emt 0:01:08]} 25. Be7 {[%emt 0:00:20]} Rxd1+ {[%emt 0:02:42]} 26. Rxd1 {[%emt 0:00:01]} Bc6 {[%emt 0:01:13]} 27. b5 {[%emt 0:01:42]} Be8 {[%emt 0:00:12]} 28. f4 {[%emt 0:00:48]} f6 {[%emt 0:01:21]} 29. Rd6 {[%emt 0:01:51]} Kf7 {[%emt 0:00:54]} 30. Rd8 {[%emt 0:00:07]} Rxd8 {[%emt 0:00:11]} 31. Bxd8 {[%emt 0:00:00]} e5 {[%emt 0:01:41]} 32. fxe5 {[%emt 0:00:57]} fxe5 {[%emt 0:00:01]} 33. Kf2 {[%emt 0:00:08]} Ke6 {[%emt 0:02:01]} 34. Ke3 {[%emt 0:00:06]} Kd6 {[%emt 0:01:01]} 35. Kd3 {[%emt 0:00:17]} Bg6+ {[%emt 0:02:17]} 36. Kc3 {[%emt 0:00:04]} Be4 {[%emt 0:00:03]} 37. g3 {[%emt 0:00:05]} h6 {[%emt 0:00:11]} 38. g4 $1 {[%emt 0:02:32]} Bf3 {[%emt 0:02:17]} (38... Kd7 $5 39. Bh4 $8 g5 $14) 39. g5 {[%emt 0:00:25]} h5 {[%emt 0:00:54]} 40. g6 $1 {[%emt 0:00:47]} Be4 {[%emt 0:00:35]} 41. Kb4 {[%emt 0:00:30]} Bxg6 {[%emt 0:00:54]} 42. a4 {[%emt 0:00:27]} e4 {[%emt 0:02:00]} 43. Bg5 {[%emt 0:00:03]} Bf5 {[%emt 0:01:53]} 44. Be3 {[%emt 0:00:25]} Kc7 {[%emt 0:01:04]} 45. a5 {[%emt 0:00:46]} bxa5+ {[%emt 0:01:32]} 46. Kxa5 {[%emt 0:00:02]} Kb7 {[%emt 0:00:32]} 47. c5 {[%emt 0:00:22]} Bc8 {[%emt 0:00:11]} 48. c6+ {[%emt 0:00:33]} Ka8 {[%emt 0:00:41]} 49. Kb4 {[%emt 0:00:16]} Bg4 {[%emt 0:00:18]} 50. Kc5 {[%emt 0:01:24]} Bh3 {[%emt 0:00:34]} 51. Kd6 {[%emt 0:00:33]} Bf1 {[%emt 0:00:09]} 52. Kc5 {[%emt 0:00:40]} Bh3 {[%emt 0:00:02]} 53. Kd6 {[%emt 0:00:11]} Bf1 {[%emt 0:00:13]} 54. Kc5 {[%emt 0:00:42]} Bh3 1/2-1/2

[Event "XV South American-ch Open U20 2019"]
[Site "Asuncion"]
[Date "2019.05.16"]
[Round "8.8"]
[White "Suarez, Pedro"]
[Black "Melian, Juan Sebastian"]
[Result "1/2-1/2"]
[ECO "E11"]
[WhiteElo "2077"]
[BlackElo "1786"]
[Annotator "NA RC"]
[PlyCount "43"]
[EventDate "2019.05.11"]
[EventType "swiss"]
[EventCountry "PAR"]
[SourceTitle "playchess.com"]
[Source "ChessBase"]
[SourceQuality "1"]
[TimeControl "5400+30"]

1. d4 Nf6 2. c4 e6 3. Nf3 Bb4+ 4. Bd2 a5 5. g3 O-O 6. Bg2 Bxd2+ 7. Nbxd2 Qe7 8. O-O d6 9. Qc2 e5 10. e3 c6 11. c5 dxc5 {dx} 12. dxe5 Nfd7 13. Qe4 $14 Re8 14. Rac1 Nxe5 15. Nxe5 Qxe5 16. Qxe5 Rxe5 17. Nc4 Re8 18. Nb6 Ra6 19. Nxc8 Rxc8 20. Bh3 Re8 21. Rxc5 Rb6 22. Rb1 1/2-1/2

[Event "XV South American-ch Open U20 2019"]
[Site "Asuncion"]
[Date "2019.05.16"]
[Round "8.9"]
[White "Gomez Barrera, Gonzalo Andres"]
[Black "Cosme Contreras, Trilce"]
[Result "1/2-1/2"]
[ECO "E90"]
[WhiteElo "2058"]
[BlackElo "2051"]
[Annotator "NA RC"]
[PlyCount "83"]
[EventDate "2019.05.11"]
[EventType "swiss"]
[EventCountry "PAR"]
[SourceTitle "playchess.com"]
[Source "ChessBase"]
[SourceQuality "1"]
[TimeControl "5400+30"]

1. d4 Nf6 2. c4 g6 3. Nc3 Bg7 4. e4 d6 5. h3 O-O 6. Be3 c5 7. Nf3 Qa5 {E90: King's Indian: Classical: Early deviations and 6 h3} 8. Bd3 Nc6 {[#]} 9. O-O (9. d5 $1 $16) 9... Nd7 10. d5 Nd4 11. Bxd4 $146 ({Predecessor:} 11. Bd2 Nxf3+ 12. Qxf3 Ne5 13. Qe2 a6 14. Bc2 b5 15. cxb5 axb5 16. Nxb5 {½-½ (44) Perez Ponsa,F (2583)-Vovk,A (2633) chess.com INT 2017}) 11... cxd4 12. Nb5 Qb6 13. Rb1 a6 14. Na3 e5 15. dxe6 fxe6 16. b4 Ne5 17. Nxe5 Bxe5 18. c5 dxc5 19. Nc4 Qc7 20. bxc5 Qxc5 21. Nb6 Rb8 22. Qb3 $11 Qd6 23. Bc4 Re8 24. f4 Bxf4 25. Rxf4 Qxf4 26. Nxc8 Rbxc8 27. Bxe6+ Kh8 28. Bxc8 Rxc8 29. Qxb7 Qe3+ 30. Kh1 Re8 31. Rf1 d3 32. Rf7 Qh6 33. Qd7 Rf8 34. Rxf8+ Qxf8 35. Qxd3 Qc5 36. Qd8+ Kg7 37. Qd7+ Kf6 38. Qd8+ Ke5 39. Qg5+ Kd4 40. Qd2+ Kxe4 41. Qe2+ Qe3 42. Qxa6 1/2-1/2

[Event "XV South American-ch Open U20 2019"]
[Site "Asuncion"]
[Date "2019.05.16"]
[Round "8.10"]
[White "Orrego Palermo, Marcelo"]
[Black "Allo Collante, Enrique"]
[Result "1/2-1/2"]
[ECO "D13"]
[WhiteElo "1632"]
[BlackElo "1595"]
[Annotator "NA RC"]
[PlyCount "62"]
[EventDate "2019.05.11"]
[EventType "swiss"]
[EventCountry "PAR"]
[SourceTitle "playchess.com"]
[Source "ChessBase"]
[SourceQuality "1"]
[TimeControl "5400+30"]

1. d4 d5 2. c4 c6 3. cxd5 cxd5 4. Nc3 Nf6 5. Bf4 e6 6. e3 Nc6 7. Bd3 Be7 8. Nf3 O-O 9. O-O a6 10. Na4 Re8 11. Qb3 Nd7 12. Rfc1 Qa5 13. a3 h6 14. Qc2 Qd8 15. b4 e5 16. Bxe5 Ndxe5 17. dxe5 Bf8 18. Rd1 Nxe5 19. Be2 Bd7 20. Nxe5 Rxe5 21. Nc3 Bc6 22. Bf3 Rc8 23. Qb3 Qf6 24. Nxd5 Qg6 25. e4 Rg5 26. Rac1 Bd6 27. Qe3 Re8 28. Qd3 Qe6 29. Ne3 Bf4 30. Rc3 Be5 31. Rcc1 Bf4 1/2-1/2